bitfinex/quotes_SOLUSD_20220212
["timestamp","ask_amount","ask_price","bid_price","bid_amount"]
[1644675893408,0.25,95.079,95.001,24.6392]
[1644675893609,5.26,95.078,95.001,24.6392]
[1644675893808,0.25,95.077,95.001,24.6392]
[1644675894215,5.26,95.076,95.001,24.6392]
[1644675894609,0.25,95.075,95.001,24.6392]
[1644675895815,5.261,95.074,95.001,24.6392]
[1644675896017,5.51,95.076,95.001,24.6392]
[1644675896215,6.97503781,95.076,95.001,24.6392]
[1644675896422,5.261,95.079,95.001,24.6392]
[1644675896617,1.46503781,95.088,95.01,15.13]
[1644675896815,1.46503781,95.091,95.01,15.13]
[1644675897019,1.46503781,95.09,95.01,15.13]
[1644675897217,5.26,95.085,95.011,2.62390296]
[1644675897417,1.46503781,95.088,95.011,2.62390296]
[1644675897616,1.46503781,95.089,95.011,2.62390296]
[1644675897819,1.46503781,95.088,95.011,2.62390296]
[1644675898023,1.46503781,95.088,95.012,24.2064]
[1644675898318,1.46503781,95.108,95.012,24.2064]
[1644675898520,1.46503781,95.113,95.013,2.62390296]
[1644675898821,1.46503781,95.112,95.013,2.62390296]
[1644675899018,42.05707179,95.111,95.013,2.62390296]
[1644675899422,42.05707179,95.111,95.02,15.7847]
[1644675899621,42.05707179,95.111,95.03,15.13]
[1644675899821,42.05707179,95.111,95.031,24.9667]
[1644675900021,42.05707179,95.111,95.031,27.59060296]
[1644675900320,42.05707179,95.111,95.032,2.62390296]
[1644675900820,1.46503781,95.107,95.031,24.9667]
[1644675901021,6.72403781,95.106,95.031,24.9667]
[1644675901224,42.05707179,95.111,95.032,7.88290296]
[1644675901421,42.05707179,95.111,95.04,15.13]
[1644675901620,42.05707179,95.111,95.041,5.258]
[1644675901822,42.05707179,95.111,95.05,15.7799]
[1644675902021,42.05707179,95.111,95.051,5.258]
[1644675902638,42.05707179,95.111,95.043,24.0882]
[1644675902639,5.258,95.11,95.043,24.0882]
[1644675903440,6.72303781,95.11,95.043,24.0882]
[1644675903842,5.258,95.11,95.043,24.0882]
[1644675904043,0.25,95.109,95.043,24.0882]
[1644675905245,0.25,95.11,95.043,24.0882]
[1644675905544,5.508,95.11,95.043,24.0882]
[1644675905744,0.25,95.11,95.043,24.0882]
[1644675905944,15.7848,95.1,95.043,24.0882]
[1644675906148,5.259,95.099,95.043,24.0882]
[1644675906344,5.509,95.099,95.043,24.0882]
[1644675906848,0.25,95.099,95.043,24.0882]
[1644675907143,15.7862,95.09,95.032,23.5004]
[1644675907347,0.25,95.089,95.032,23.5004]
[1644675907544,5.509,95.089,95.032,23.5004]
[1644675907743,0.25,95.089,95.032,23.5004]
[1644675908546,1.46503781,95.096,95.032,23.5004]
[1644675908747,43.43540035,95.079,95.032,23.5004]
[1644675909146,0.25,95.078,95.032,23.5004]
[1644675909347,5.26,95.077,95.032,23.5004]
[1644675911051,0.25,95.078,95.032,23.5004]
[1644675911850,43.43540035,95.079,95.032,23.5004]
[1644675912250,15.785,95.1,95.032,23.5004]
[1644675912455,5.259,95.099,95.033,24.7005]
[1644675912651,5.509,95.099,95.033,24.7005]
[1644675913351,42.90334735,95.098,95.033,24.7005]
[1644675914455,5.259,95.099,95.033,24.7005]
[1644675914653,5.259,95.107,95.033,36.0305]
[1644675914852,52.602,95.15,95.033,38.65440296]
[1644675914853,1.46503781,95.123,95.033,38.65440296]
[1644675915055,52.602,95.15,95.033,38.65440296]
[1644675915056,1.46503781,95.125,95.033,38.65440296]
[1644675915453,36.75866429,95.124,95.033,38.65440296]
[1644675916354,1.46503781,95.128,95.034,105.1]
[1644675916555,1.46503781,95.141,95.041,0.48]
[1644675916754,1.46503781,95.141,95.06,15.7732]
[1644675916956,1.46503781,95.147,95.07,15.13]
[1644675917158,1.46503781,95.154,95.07,15.13]
[1644675917355,1.46503781,95.155,95.071,24.236]
[1644675917559,1.46503781,95.158,95.072,105.1]
[1644675917755,1.46503781,95.164,95.073,5.256]
[1644675917956,1.46503781,95.151,95.073,5.256]
[1644675918162,1.46503781,95.149,95.073,2.62390296]
[1644675918355,41.13231373,95.15,95.074,26.73960296]
[1644675918555,5.257,95.148,95.074,26.73960296]
[1644675919357,5.257,95.148,95.074,24.1157]
[1644675919756,5.257,95.149,95.074,24.1157]
[1644675919958,41.13231373,95.15,95.075,5.256]
[1644675920158,41.13231373,95.15,95.08,15.13]
[1644675920357,5.256,95.149,95.08,15.13]
[1644675921865,5.256,95.149,95.081,5.256]
[1644675923059,41.13231373,95.15,95.08,15.13]
[1644675923661,41.13231373,95.15,95.081,2.62390296]
[1644675924063,5.256,95.149,95.08,15.13]
[1644675924261,41.13231373,95.15,95.08,15.13]
[1644675924462,5.256,95.163,95.08,15.13]
[1644675924664,1.46503781,95.167,95.081,2.62390296]
[1644675924864,1.46503781,95.174,95.081,2.62390296]
[1644675925064,6.72103781,95.173,95.081,2.62390296]
[1644675925267,1.46503781,95.172,95.081,2.62390296]
[1644675925466,37.97024507,95.171,95.081,2.62390296]
[1644675925867,0.25,95.17,95.081,2.62390296]
[1644675926272,37.97024507,95.171,95.081,2.62390296]
[1644675926468,37.97024507,95.171,95.082,5.256]
[1644675926869,37.97024507,95.171,95.083,2.62390296]
[1644675927068,37.97024507,95.171,95.084,5.256]
[1644675927269,37.97024507,95.171,95.085,24.4578]
[1644675927471,37.97024507,95.171,95.086,5.256]
[1644675927670,37.97024507,95.171,95.1,15.13]
[1644675927873,37.97024507,95.171,95.101,5.255]
[1644675928071,37.97024507,95.171,95.1,15.13]
[1644675928271,5.255,95.17,95.1,15.13]
[1644675928473,5.255,95.17,95.101,22.5165]
[1644675929693,37.97024507,95.171,95.101,22.5165]
[1644675929893,5.255,95.17,95.101,22.5165]
[1644675933598,37.97024507,95.171,95.101,22.5165]
[1644675933799,0.25,95.169,95.101,22.5165]
[1644675933999,5.255,95.168,95.101,22.5165]
[1644675934199,0.25,95.167,95.101,22.5165]
[1644675934400,5.255,95.166,95.101,22.5165]
[1644675934700,0.25,95.165,95.101,22.5165]
[1644675934903,5.255,95.164,95.101,22.5165]
[1644675935301,0.25,95.163,95.101,22.5165]
[1644675935703,5.255,95.162,95.101,22.5165]
[1644675936101,0.25,95.161,95.101,22.5165]
[1644675936301,5.255,95.16,95.101,22.5165]
[1644675936704,0.25,95.159,95.101,22.5165]
[1644675937101,5.255,95.158,95.08,15.13]
[1644675937302,0.25,95.157,95.052,22.7803]
[1644675937501,5.257,95.156,95.052,22.7803]
[1644675937701,0.25,95.155,95.052,22.7803]
[1644675937903,5.257,95.154,95.052,22.7803]
[1644675938104,15.7763,95.15,95.052,22.7803]
[1644675938301,5.507,95.149,95.052,22.7803]
[1644675940403,1.46503781,95.148,95.052,22.7803]
[1644675940600,5.257,95.147,95.052,22.7803]
[1644675940803,24.1007,95.146,95.052,22.7803]
[1644675941001,5.257,95.145,95.052,22.7803]
[1644675941202,5.507,95.145,95.052,22.7803]
[1644675941601,6.72203781,95.145,95.052,22.7803]
[1644675941801,0.25,95.144,95.052,22.7803]
[1644675942002,15.7778,95.14,95.052,22.7803]
[1644675942204,47.23105491,95.139,95.052,22.7803]
[1644675942402,5.257,95.138,95.052,22.7803]
[1644675942802,0.25,95.137,95.052,22.7803]
[1644675943204,46.98105491,95.139,95.052,22.7803]
[1644675943409,5.507,95.138,95.052,22.7803]
[1644675944006,6.97203781,95.138,95.052,22.7803]
[1644675944205,1.46503781,95.137,95.052,22.7803]
[1644675944405,5.257,95.136,95.052,22.7803]
[1644675944808,15.7798,95.13,95.052,22.7803]
[1644675945005,5.258,95.129,95.052,22.7803]
[1644675945205,1.46503781,95.131,95.052,22.7803]
[1644675945406,0.25,95.128,95.052,22.7803]
[1644675945805,15.7815,95.12,95.052,22.7803]
[1644675946206,0.25,95.119,95.052,22.7803]
[1644675946505,5.258,95.118,95.052,22.7803]
[1644675947707,5.258,95.118,95.05,15.13]
[1644675949210,37.77597391,95.109,95.05,15.13]
[1644675949609,0.25,95.108,95.032,24.0254]
[1644675949808,5.509,95.108,95.032,24.0254]
[1644675951711,5.259,95.108,95.032,24.0254]
[1644675953010,61.13767391,95.109,95.032,24.0254]
[1644675953212,0.25,95.108,95.032,24.0254]
[1644675953613,61.13767391,95.109,95.032,24.0254]
[1644675954913,5.259,95.108,95.032,24.0254]
[1644675955111,0.25,95.108,95.032,24.0254]
[1644675955513,15.7844,95.1,95.032,24.0254]
[1644675955714,5.509,95.099,95.032,24.0254]
[1644675959318,15.7844,95.1,95.032,24.0254]
[1644675959617,0.25,95.098,95.032,24.0254]
[1644675959822,61.13767391,95.109,95.032,24.0254]
[1644675960719,61.13767391,95.109,95.033,2.62390296]
[1644675960919,5.259,95.108,95.033,2.62390296]
[1644675961521,5.259,95.108,95.032,24.0254]
[1644675962720,61.13767391,95.109,95.032,24.0254]
[1644675962920,1.46503781,95.127,95.032,35.0654]
[1644675963122,1.46503781,95.127,95.033,2.62390296]
[1644675963322,1.46503781,95.134,95.033,18.20945569]
[1644675963525,1.46503781,95.13,95.034,18.04525381]
[1644675963723,1.46503781,95.13,95.034,36.2547095]
[1644675963921,40.79342299,95.128,95.035,2.62390296]
[1644675964124,15.7812,95.12,95.035,2.62390296]
[1644675964924,5.258,95.119,95.035,2.62390296]
[1644675965124,1.46503781,95.127,95.035,2.62390296]
[1644675965330,5.258,95.124,95.035,2.62390296]
[1644675965530,1.46503781,95.125,95.035,2.62390296]
[1644675965731,24.37693781,95.126,95.035,2.62390296]
[1644675965931,1.46503781,95.124,95.035,2.62390296]
[1644675966332,5.258,95.123,95.035,2.62390296]
[1644675966539,1.46503781,95.124,95.035,2.62390296]
[1644675967235,1.46503781,95.125,95.035,2.62390296]
[1644675967435,24.37693781,95.126,95.036,5.258]
[1644675967637,24.37693781,95.126,95.05,15.13]
[1644675967835,5.258,95.125,95.051,23.5754]
[1644675968036,22.9119,95.126,95.051,28.8334]
[1644675968236,5.258,95.125,95.051,28.8334]
[1644675968634,5.258,95.125,95.051,23.5754]
[1644675969838,22.9119,95.126,95.051,23.5754]
[1644675970650,1.46503781,95.125,95.051,23.5754]
[1644675971250,22.9119,95.126,95.051,23.5754]
[1644675971450,5.258,95.125,95.051,23.5754]
[1644675973054,40.79342299,95.128,95.052,7.88190296]
[1644675973254,40.79342299,95.128,95.052,17.12190296]
[1644675973553,5.258,95.138,95.053,20.6727684]
[1644675973755,1.46503781,95.143,95.054,5.257]
[1644675973954,1.46503781,95.144,95.054,146.61532113]
[1644675974154,1.46503781,95.144,95.055,2.62390296]
[1644675974456,43.09204739,95.143,95.07,15.13]
[1644675974653,43.09204739,95.143,95.071,23.4141]
[1644675974955,43.09204739,95.143,95.071,26.03800296]
[1644675975159,43.09204739,95.143,95.072,7.88090296]
[1644675975454,43.09204739,95.143,95.073,2.62390296]
[1644675975654,43.09204739,95.143,95.074,5.257]
[1644675976056,43.09204739,95.143,95.075,2.62390296]
[1644675976256,43.09204739,95.143,95.09,15.13]
[1644675984562,43.09204739,95.143,95.091,2.62390296]
[1644675985164,1.46503781,95.155,95.091,2.62390296]
[1644675985367,1.46503781,95.156,95.092,23.8083]
[1644675985967,1.46503781,95.156,95.092,26.43220296]
[1644675986167,47.74341424,95.155,95.092,26.43220296]
[1644675986973,47.74341424,95.155,95.092,23.8083]
[1644675987171,1.46503781,95.151,95.092,23.8083]
[1644675987373,1.46503781,95.15,95.092,23.8083]
[1644675987571,1.46503781,95.144,95.092,23.8083]
[1644675987972,1.46503781,95.146,95.092,23.8083]
[1644675988171,1.46503781,95.147,95.092,23.8083]
[1644675988373,1.46503781,95.151,95.092,23.8083]
[1644675989278,1.46503781,95.149,95.092,23.8083]
[1644675989679,1.46503781,95.147,95.092,23.8083]
[1644675990574,1.46503781,95.146,95.092,23.8083]
[1644675991177,1.46503781,95.145,95.092,23.8083]
[1644675991577,1.46503781,95.141,95.09,15.13]
[1644675991777,1.46503781,95.137,95.071,23.3376]
[1644675991978,1.46503781,95.126,95.058,5.256]
[1644675992177,1.46503781,95.126,95.052,22.8031]
[1644675992178,1.46503781,95.118,95.052,22.8031]
[1644675992379,1.46503781,95.116,95.052,22.8031]
[1644675992578,5.258,95.115,95.052,22.8031]
[1644675992977,1.46503781,95.11,95.052,22.8031]
[1644675993376,1.46503781,95.114,95.052,22.8031]
[1644675993578,5.258,95.113,95.052,22.8031]
[1644675993776,6.72303781,95.113,95.052,22.8031]
[1644675993977,1.46503781,95.114,95.052,22.8031]
[1644675994178,5.258,95.113,95.052,22.8031]
[1644675995483,1.46503781,95.114,95.052,22.8031]
[1644675996281,1.46503781,95.116,95.052,22.8031]
[1644675996488,5.258,95.115,95.052,22.8031]
[1644675996681,36.16895643,95.125,95.052,22.8031]
[1644675996682,1.46503781,95.118,95.052,22.8031]
[1644675996885,36.16895643,95.125,95.053,2.62390296]
[1644675997886,1.46503781,95.135,95.053,107.72390296]
[1644675998083,1.46503781,95.139,95.06,15.7749]
[1644675998282,1.46503781,95.139,95.07,15.13]
[1644675998484,1.46503781,95.139,95.071,28.0145]
[1644675998684,1.46503781,95.141,95.071,28.0145]
[1644675998883,1.46503781,95.145,95.071,30.63840296]
[1644675999084,1.46503781,95.146,95.072,2.62390296]
[1644675999385,35.66472892,95.156,95.073,5.257]
[1644675999386,1.46503781,95.152,95.073,5.257]
[1644675999587,1.46503781,95.151,95.073,5.257]
[1644675999784,1.46503781,95.151,95.08,15.7708]
[1644676000086,1.46503781,95.153,95.09,15.13]
[1644676000284,1.46503781,95.152,95.091,24.3815]
[1644676000491,1.46503781,95.153,95.091,27.00540296]
[1644676000690,1.46503781,95.162,95.092,7.87990296]
[1644676000884,1.46503781,95.175,95.1,15.7683]
[1644676001086,1.46503781,95.172,95.11,15.13]
[1644676001285,1.46503781,95.172,95.111,24.7436]
[1644676001488,1.46503781,95.172,95.112,5.255]
[1644676001687,1.46503781,95.173,95.112,5.255]
[1644676001884,1.46503781,95.171,95.112,5.255]
[1644676002384,1.46503781,95.166,95.112,5.255]
[1644676002585,1.46503781,95.164,95.111,24.7436]
[1644676002787,1.46503781,95.16,95.111,24.7436]
[1644676003484,1.46503781,95.162,95.111,24.7436]
[1644676003685,1.46503781,95.163,95.111,24.7436]
[1644676003904,1.46503781,95.162,95.111,24.7436]
[1644676004586,1.46503781,95.161,95.111,24.7436]
[1644676005088,1.46503781,95.16,95.111,24.7436]
[1644676005288,1.46503781,95.158,95.11,15.13]
[1644676005490,1.46503781,95.15,95.11,15.13]
[1644676005688,0.25,95.149,95.11,15.13]
[1644676005887,6.72003781,95.148,95.11,15.13]
[1644676006089,1.46503781,95.149,95.093,22.6873]
[1644676006289,1.46503781,95.147,95.094,22.7818]
[1644676006495,1.46503781,95.148,95.094,22.7818]
[1644676006689,1.46503781,95.151,95.094,22.7818]
[1644676007088,1.46503781,95.152,95.094,22.7818]
[1644676007290,1.46503781,95.153,95.094,22.7818]
[1644676008190,1.46503781,95.151,95.094,22.7818]
[1644676009290,5.256,95.15,95.094,22.7818]
[1644676009693,1.46503781,95.154,95.094,22.7818]
[1644676010191,1.46503781,95.153,95.094,22.7818]
[1644676010596,1.46503781,95.154,95.094,22.7818]
[1644676010792,1.46503781,95.153,95.094,22.7818]
[1644676010993,1.46503781,95.152,95.094,22.7818]
[1644676011194,1.46503781,95.153,95.094,22.7818]
[1644676011812,5.256,95.172,95.095,2.62390296]
[1644676011813,1.46503781,95.154,95.095,2.62390296]
[1644676012013,1.46503781,95.17,95.095,2.62390296]
[1644676012212,1.46503781,95.181,95.095,2.62390296]
[1644676012412,1.46503781,95.187,95.1,189.07]
[1644676012613,1.46503781,95.187,95.12,15.7639]
[1644676012811,1.46503781,95.187,95.13,15.13]
[1644676013014,1.46503781,95.186,95.13,15.13]
[1644676013216,1.46503781,95.188,95.131,5.253]
[1644676013414,1.46503781,95.188,95.13,15.13]
[1644676013813,1.46503781,95.188,95.13,30.8932]
[1644676014013,1.46503781,95.189,95.13,30.8932]
[1644676014213,1.46503781,95.196,95.131,5.253]
[1644676014415,2.93007563,95.222,95.132,23.8554]
[1644676014416,1.46503781,95.195,95.132,23.8554]
[1644676014613,1.46503781,95.194,95.133,23.4182]
[1644676014815,1.46503781,95.193,95.133,23.4182]
[1644676015517,1.46503781,95.194,95.133,23.4182]
[1644676015717,1.46503781,95.192,95.133,23.4182]
[1644676015915,1.46503781,95.191,95.134,5.253]
[1644676016314,1.46503781,95.191,95.133,23.4182]
[1644676016515,1.46503781,95.194,95.133,23.4182]
[1644676016717,1.46503781,95.194,95.134,5.253]
[1644676016915,1.46503781,95.193,95.133,23.4182]
[1644676017318,1.46503781,95.193,95.134,5.253]
[1644676017517,1.46503781,95.192,95.134,5.253]
[1644676017716,1.46503781,95.192,95.132,23.8554]
[1644676017916,5.253,95.191,95.132,23.8554]
[1644676018319,1.46503781,95.183,95.132,23.8554]
[1644676018518,1.46503781,95.184,95.132,23.8554]
[1644676018717,1.46503781,95.185,95.132,23.8554]
[1644676018919,1.46503781,95.183,95.132,23.8554]
[1644676019119,1.46503781,95.182,95.13,15.13]
[1644676019417,1.46503781,95.181,95.13,15.13]
[1644676020025,1.46503781,95.185,95.13,15.13]
[1644676020220,1.46503781,95.186,95.13,15.13]
[1644676020824,1.46503781,95.188,95.13,15.13]
[1644676021023,1.46503781,95.191,95.13,15.13]
[1644676021222,1.46503781,95.192,95.13,15.13]
[1644676021421,1.46503781,95.193,95.13,15.13]
[1644676021822,1.46503781,95.194,95.131,5.253]
[1644676022623,5.253,95.193,95.13,30.8934]
[1644676023025,1.46503781,95.199,95.131,5.253]
[1644676023225,1.46503781,95.196,95.131,5.253]
[1644676024128,5.253,95.222,95.14,15.7619]
[1644676024329,2.93007563,95.253,95.151,0.48]
[1644676024527,23.0543,95.271,95.161,0.48]
[1644676024528,5.252,95.266,95.161,0.48]
[1644676024730,5.252,95.27,95.17,15.13]
[1644676024927,23.0543,95.271,95.17,15.13]
[1644676025127,4.94304685,95.269,95.171,26.54950296]
[1644676025328,46.73059606,95.27,95.171,26.54950296]
[1644676025528,41.48059606,95.27,95.172,2.62390296]
[1644676025728,41.48059606,95.27,95.18,15.7548]
[1644676025927,41.48059606,95.27,95.19,15.13]
[1644676026330,5.25,95.269,95.191,2.62390296]
[1644676027630,41.48059606,95.27,95.192,5.25]
[1644676027832,5.25,95.269,95.191,2.62390296]
[1644676028031,41.48059606,95.27,95.193,2.62390296]
[1644676028932,5.25,95.269,95.193,2.62390296]
[1644676029146,41.48059606,95.27,95.194,5.25]
[1644676029334,41.48059606,95.27,95.193,2.62390296]
[1644676029533,5.25,95.269,95.195,2.62390296]
[1644676029938,5.25,95.278,95.2,15.7522]
[1644676030134,5.25,95.296,95.21,15.13]
[1644676030337,5.249,95.305,95.21,15.13]
[1644676030536,5.249,95.309,95.211,2.62390296]
[1644676030738,4.92503274,95.308,95.212,105.1]
[1644676030939,43.70957333,95.312,95.221,105.1]
[1644676031138,43.70957333,95.312,95.23,15.13]
[1644676031336,43.70957333,95.312,95.24,15.13]
[1644676031535,43.70957333,95.312,95.241,5.247]
[1644676033536,5.247,95.311,95.24,30.8746]
[1644676036141,0.25,95.31,95.24,15.13]
[1644676036345,5.247,95.309,95.24,15.13]
[1644676036747,0.25,95.308,95.24,15.13]
[1644676037147,5.248,95.307,95.24,15.13]
[1644676037444,0.25,95.306,95.24,15.13]
[1644676037670,5.248,95.305,95.24,15.13]
[1644676037845,5.248,95.306,95.24,15.13]
[1644676038045,43.70957333,95.312,95.24,15.13]
[1644676038046,5.248,95.311,95.24,15.13]
[1644676038346,43.70957333,95.312,95.24,15.13]
[1644676038948,43.70957333,95.312,95.241,5.247]
[1644676039145,43.70957333,95.312,95.24,15.13]
[1644676040347,5.247,95.311,95.24,15.13]
[1644676040845,5.247,95.311,95.25,15.7436]
[1644676041046,43.70957333,95.312,95.25,30.8736]
[1644676041551,5.247,95.311,95.25,30.8736]
[1644676041750,5.247,95.33,95.26,15.7413]
[1644676041950,5.247,95.35,95.27,15.13]
[1644676042249,2.62390296,95.352,95.27,15.13]
[1644676042445,5.246,95.349,95.271,2.62390296]
[1644676042646,45.39421785,95.348,95.271,2.62390296]
[1644676042947,45.39421785,95.348,95.28,15.7393]
[1644676043150,24.5064,95.361,95.29,15.13]
[1644676043346,5.246,95.368,95.29,15.13]
[1644676043547,24.3735,95.369,95.291,7.86790296]
[1644676043946,24.3735,95.369,95.292,2.62390296]
[1644676044153,42.60627212,95.368,95.293,5.244]
[1644676044846,42.60627212,95.368,95.3,15.7359]
[1644676046246,0.25,95.367,95.301,5.244]
[1644676046646,4.91333659,95.366,95.301,5.244]
[1644676047048,5.244,95.365,95.29,15.13]
[1644676047251,4.91333659,95.364,95.29,15.13]
[1644676047448,2.93007563,95.361,95.29,15.13]
[1644676047649,2.93007563,95.353,95.251,5.245]
[1644676047850,5.246,95.352,95.25,15.13]
[1644676048049,2.93007563,95.347,95.25,15.13]
[1644676048248,3.18007563,95.346,95.251,5.246]
[1644676048452,4.91333659,95.345,95.251,5.246]
[1644676048651,15.7446,95.34,95.21,5.246]
[1644676048851,2.93007563,95.333,95.22,15.13]
[1644676049153,2.93007563,95.328,95.2,15.13]
[1644676049356,15.13,95.33,95.18,15.13]
[1644676049357,35.17561386,95.295,95.18,15.13]
[1644676049555,15.7594,95.26,95.161,2.62390296]
[1644676049754,10.41433659,95.259,95.136,5.25]
[1644676049954,2.93007563,95.248,95.136,5.25]
[1644676050152,2.93007563,95.242,95.136,5.25]
[1644676050352,2.93007563,95.233,95.136,5.25]
[1644676050653,34.51187174,95.229,95.136,5.25]
[1644676050854,34.51187174,95.229,95.1,15.13]
[1644676050855,37.44194737,95.229,95.1,15.13]
[1644676051053,15.7692,95.2,95.1,14.13]
[1644676051255,46.89014734,95.199,95.1,14.13]
[1644676051454,49.5140503,95.199,95.07,15.13]
[1644676051656,2.62390296,95.198,95.06,15.13]
[1644676051858,5.256,95.197,95.06,15.13]
[1644676052055,15.7749,95.17,95.06,15.13]
[1644676052260,47.33774231,95.169,95.06,15.13]
[1644676055059,41.83174231,95.169,95.06,15.13]
[1644676055264,5.256,95.189,95.071,0.48]
[1644676055561,5.256,95.189,95.08,15.13]
[1644676056162,42.75026827,95.188,95.08,15.13]
[1644676056472,5.255,95.187,95.08,15.13]
[1644676056668,5.505,95.187,95.08,15.13]
[1644676056865,5.505,95.187,95.09,15.769]
[1644676057065,5.505,95.187,95.1,15.13]
[1644676059465,5.505,95.187,95.1,30.8982]
[1644676059670,15.7674,95.21,95.1,30.8982]
[1644676060066,0.25,95.209,95.1,30.8982]
[1644676060283,5.253,95.208,95.1,15.13]
[1644676060684,40.36720882,95.207,95.1,15.13]
[1644676060993,15.7691,95.2,95.1,15.13]
[1644676061384,5.503,95.199,95.1,15.13]
[1644676061584,0.25,95.199,95.1,15.13]
[1644676061783,5.253,95.198,95.1,15.13]
[1644676062186,15.7715,95.18,95.08,15.7715]
[1644676062384,15.7715,95.18,95.08,30.9015]
[1644676062584,0.25,95.179,95.08,30.9015]
[1644676062782,5.255,95.178,95.08,30.9015]
[1644676062982,36.84603764,95.177,95.08,30.9015]
[1644676063182,5.256,95.176,95.08,30.9015]
[1644676063582,0.25,95.175,95.08,30.9015]
[1644676063783,5.256,95.174,95.08,30.9015]
[1644676064185,15.7734,95.17,95.08,30.9015]
[1644676064385,5.256,95.169,95.08,30.9015]
[1644676064585,5.506,95.169,95.08,15.13]
[1644676064787,0.25,95.169,95.08,15.13]
[1644676064987,5.256,95.168,95.06,30.9042]
[1644676065386,0.25,95.167,95.06,30.9042]
[1644676065684,15.775,95.16,95.06,30.9042]
[1644676066086,5.507,95.159,95.06,30.9042]
[1644676066286,0.25,95.159,95.06,30.9042]
[1644676066484,5.257,95.158,95.06,30.9042]
[1644676066885,0.25,95.157,95.06,15.7742]
[1644676067085,15.7768,95.15,95.041,47.7135]
[1644676067387,0.25,95.149,95.041,47.7135]
[1644676067585,41.63059903,95.147,95.041,47.7135]
[1644676067785,5.507,95.146,95.041,47.7135]
[1644676067987,0.25,95.146,95.041,47.7135]
[1644676068787,0.25,95.146,95.05,15.7771]
[1644676068987,5.257,95.145,95.05,15.7771]
[1644676069188,0.25,95.144,95.05,15.7771]
[1644676069388,5.257,95.143,95.05,15.7771]
[1644676069788,0.25,95.142,95.05,15.7771]
[1644676070389,5.257,95.146,95.05,15.7771]
[1644676071700,0.25,95.145,95.05,15.7771]
[1644676071896,5.257,95.144,95.05,15.7771]
[1644676072292,0.25,95.143,95.05,15.7771]
[1644676073092,5.257,95.146,95.05,30.9071]
[1644676075793,0.25,95.145,95.05,30.9071]
[1644676076196,5.257,95.144,95.05,30.9071]
[1644676076594,0.25,95.143,95.05,30.9071]
[1644676076796,5.257,95.142,95.05,30.9071]
[1644676077198,0.25,95.141,95.05,30.9071]
[1644676077395,5.257,95.14,95.05,30.9071]
[1644676077800,0.25,95.139,95.05,30.9071]
[1644676078196,5.257,95.138,95.05,30.9071]
[1644676078397,0.25,95.139,95.051,5.257]
[1644676078797,0.25,95.146,95.051,5.257]
[1644676080403,0.25,95.146,95.06,15.7758]
[1644676080601,5.257,95.145,95.06,15.7758]
[1644676080805,5.257,95.149,95.06,30.9058]
[1644676081000,5.257,95.158,95.061,23.371]
[1644676081202,0.25,95.148,95.061,23.371]
[1644676081805,5.257,95.16,95.07,15.7737]
[1644676082002,5.256,95.163,95.07,38.8337]
[1644676082202,5.256,95.169,95.07,38.8337]
[1644676082402,4.94710741,95.168,95.07,38.8337]
[1644676082602,4.39511344,95.196,95.07,38.8337]
[1644676082603,2.93007563,95.177,95.07,38.8337]
[1644676082802,51.08293603,95.175,95.07,38.8337]
[1644676083106,4.94712287,95.174,95.07,38.8337]
[1644676083302,5.256,95.173,95.071,5.256]
[1644676083505,4.94712287,95.172,95.08,15.7717]
[1644676083704,5.256,95.171,95.08,30.9017]
[1644676083905,4.94712287,95.17,95.08,30.9017]